Cogmind - Beta 14 @@@ ROGUE MODE // 2024.08.31 @ 08:54:11 Player: SnowyImp Result: Destroyed by D-53 Grenadier with Mini Grenade Launcher Performance ------------- Evolutions (1) 500 Regions Visited (3) 600 Robots Destroyed (55) 275 Value Destroyed (1483) 1483 Prototype IDs (3) 60 Alien Tech Used (0) 0 Bonus (54) 54 TOTAL SCORE: 2972 Bonus ------- High Alert Combat Kills 54 Cogmind --------- Core Integrity 0/400 Matter 300/300 Energy 250/250 System Corruption 0% Temperature Cool (0) Movement Walking (190) Ox1 Location -9/Mines Parts ------- > --- POWER (1) -------- Ion Engine > --- PROPULSION (2) --- Aluminum Leg > --- UTILITY (4) ------ Improved Heat Sink Medium Storage Unit Advanced Targeting Computer Advanced Targeting Computer > --- WEAPON (2) ------- (None) > --- INVENTORY (10) --- Advanced Targeting Computer Advanced Targeting Computer Improved Light Armor Plating Improved Light Armor Plating Heavy Particle Gun Peak State ------------ > --- POWER ------------ Cooled Ion Engine > --- PROPULSION ------- Improved Aluminum Leg Improved Aluminum Leg > --- UTILITY ---------- Heat Sink Advanced Targeting Computer Advanced Targeting Computer Improved Light Armor Plating > --- WEAPON ----------- Heavy Particle Gun Heavy Particle Gun > --- INVENTORY -------- Advanced Targeting Computer Advanced Targeting Computer Melee Analysis Suite Improved Light Armor Plating Heavy Particle Gun [Rating: 26] Favorites ----------- Power Ion Engine Engine Ion Engine Propulsion Improved Aluminum Leg Treads Light Treads Leg Improved Aluminum Leg Flight Unit Improved Flight Unit Utility Advanced Targeting Computer Device Improved Terrain Scanner Storage Medium Storage Unit Processor Advanced Targeting Computer Protection Improved Light Armor Plating Weapon Heavy Particle Gun Energy Gun Heavy Particle Gun Energy Cannon Beam Cannon Build | -11 -10 -9 -9 ------- Run | Yrd Mat Mat Min Slots Evolved 2 | . . 2 . Power . | . . . . Propulsion . | . . . . Utility 2 | . . 2 . Weapon . | . . . . Parts Attached 52 | 9 8 34 1 Power 9 | 1 2 6 . Engine 9 | 1 2 6 . Core . | . . . . Reactor . | . . . . Propulsion 18 | 3 4 10 1 Treads 2 | 2 . . . Leg 15 | 1 4 9 1 Wheel . | . . . . Hover . | . . . . Flight 1 | . . 1 . Utility 15 | 3 . 12 . Device 6 | 2 . 4 . Storage 2 | 1 . 1 . Processor 3 | . . 3 . Hackware . | . . . . Protection 4 | . . 4 . Artifact . | . . . . Weapon 10 | 2 2 6 . Energy Gun 7 | 2 2 3 . Energy Cannon 3 | . . 3 . Ballistic Gun . | . . . . Ballistic Cannon . | . . . . Launcher . | . . . . Special Weapon . | . . . . Impact Weapon . | . . . . Slashing Weapon . | . . . . Piercing Weapon . | . . . . Special Melee Weapon . | . . . . Unidentified Prototypes 3 | . . 3 . Parts Lost 12 | . 3 5 4 Power 3 | . 1 2 . Propulsion 3 | . 1 . 2 Utility 3 | . . 3 . Weapon 3 | . 1 . 2 Highest Loss Streak 3 | . 3 2 3 To Critical Strikes . | . . . . Average Slot Usage (%) 95 | . 98 95 88 Engine 11 | . 14 10 11 Treads 2 | . 14 . . Leg 19 | . 12 21 15 Device 16 | . 28 13 11 Storage 1 | . . 1 11 Processor 15 | . . 18 22 Protection 5 | . . 7 . Energy Gun 18 | . 26 16 17 Energy Cannon 3 | . . 4 . Peak Build Rating 26 | 9 9 26 24 Average Rating 17 | 5 8 20 22 On Entrance 10 | . 9 9 24 Naked Turns . | . . . . Heaviest Build 22 | 14 10 22 22 Greatest Support 40 | 40 40 26 23 Greatest Overweight (x) 7 | 1 . 7 2 Average Overweight (x) . | . . . . Largest Inventory Capacity 10 | 8 5 10 10 Average Capacity 5 | 7 5 5 10 Most Carried 5 | 2 5 5 5 Average Carried 4 | 1 3 4 5 Final Capacity 10 | 5 5 10 10 Final Carried 5 | 2 5 5 5 Class Distribution -------------------- 66% | Mutant 33% | Scavenger-Mutant Dominant Class ---------------- Mutant | -10/Materials Mutant | -9/Materials Mutant | -9/Mines Resources | -11 -10 -9 -9 ----------- Run | Yrd Mat Mat Min Matter Collected 675 | 280 60 335 . Remotely . | . . . . Salvage Created 2242 | 141 252 1770 79 Parts 132 | 7 13 108 4 Haulers Intercepted . | . . . . Recyclers Shooed 2 | 1 . 1 . Parts Field Recycled . | . . . . Retrieved Matter . | . . . . Parts Self-Destructed . | . . . . Prevented . | . . . . Kills | -11 -10 -9 -9 ------- Run | Yrd Mat Mat Min Combat Hostiles Destroyed 41 | . 7 32 2 Guns 27 | . 7 19 1 Cannons 13 | . . 13 . Classes Destroyed 9 | 3 1 5 . Worker 2 | 1 . 1 . Builder 1 | . . 1 . Tunneler 2 | 2 . . . Recycler 7 | 1 . 6 . Watcher 2 | . . 2 . Swarmer 7 | . . 7 . Grunt 25 | . 7 16 2 Duelist 2 | . . 2 . Sentry 7 | . . 7 . Best Kill Streak 8 | 2 4 8 2 Combat Bots Only 6 | . 4 6 2 Max Kills in Single Turn 2 | 2 1 1 1 Gunslinging . | . . . . Exploded . | . . . . Melee . | . . . . Uniques/NPCs Destroyed . | . . . . Combat | -11 -10 -9 -9 -------- Run | Yrd Mat Mat Min Hostile Shots Fired 237 | . 78 142 17 Missed 66 | . 15 48 3 Damage Taken 2341 | . 696 1196 449 Core 614 | . 210 178 226 Absorbed by Shields . | . . . . Core Remaining (%) 58 | 100 16 . . Volleys Fired 135 | 13 25 91 6 Largest 2 | 2 2 2 2 Hottest 120 | 80 80 120 110 Shots Fired 234 | 14 41 167 12 Gun 183 | 14 41 116 12 Cannon 51 | . . 51 . Launcher . | . . . . Special . | . . . . Kinetic . | . . . . Thermal 233 | 13 41 167 12 Explosive . | . . . . Electromagnetic 1 | 1 . . . Robot Hit Streak 17 | 3 11 17 7 Robot Miss Streak 4 | 3 2 4 2 Penetration Max . | . . . . Secondary Targets 2 | . 2 . . Max Gunslinging Chain 1 | . 1 . . Shots Hit Robots 164 | 7 32 116 9 Core Hits 76 | 5 15 55 1 Critical Kills . | . . . . Critical Parts Destroyed . | . . . . Critical Strikes 4 | . . 4 . Burn 4 | . . 4 . Melee Attacks . | . . . . Impact . | . . . . Slashing . | . . . . Piercing . | . . . . Sneak Attacks . | . . . . Combat Hostiles . | . . . . Follow-up Attacks . | . . . . Damage Inflicted 2775 | 91 386 2129 169 Guns 2190 | 91 373 1557 169 Cannons 540 | . . 540 . Explosions . | . . . . Melee . | . . . . Ramming 45 | . 13 32 . Kinetic . | . . . . Thermal 2717 | 78 373 2097 169 Explosive . | . . . . Electromagnetic 13 | 13 . . . Impact . | . . . . Slashing . | . . . . Piercing . | . . . . Highest Corruption 1 | . 1 . . Average Corruption 1 | . 1 . . Corruption Purged . | . . . . Corruption Blocked . | . . . . Overload Shots . | . . . . Overflow Damage . | . . . . Projectiles . | . . . . Explosions . | . . . . Melee . | . . . . Knockbacks . | . . . . Impact . | . . . . Kinetic . | . . . . Secondary . | . . . . Self-Inflicted Damage . | . . . . Shots . | . . . . Rammed 10 | . 10 . . Targets Rammed 16 | . 10 6 . Kicked 6 | . . 6 . Crushed . | . . . . Highest Temperature 228 | 18 212 228 27 Average Temperature 67 | 12 111 56 19 Received Heat Transfer 867 | . 378 453 36 Siege Activations . | . . . . Robots Corrupted . | . . . . Combat Hostiles . | . . . . Parts Fried . | . . . . Impact Corruptions . | . . . . Robots Melted 1 | . . . 1 Combat Hostiles 1 | . . . 1 Parts Melted 18 | . 1 16 1 Heat Transferred 5838 | 175 825 4505 333 Parts Sabotaged . | . . . . Parts Stolen . | . . . . Parts Stripped . | . . . . Power Chain Reactions . | . . . . Alert | -11 -10 -9 -9 ------- Run | Yrd Mat Mat Min Peak Influence 532 | 20 173 532 193 Initial 153 | . 13 . 153 Average 204 | 8 110 246 185 Maximum Alert Level 2 | . . 2 . Low Security (%) 57 | 100 100 41 100 Level 1 22 | . . 31 . Level 2 19 | . . 27 . Level 3 . | . . . . Level 4 . | . . . . Level 5 . | . . . . High Security . | . . . . Max Security . | . . . . Squads Dispatched 10 | . 6 4 . Investigation 5 | . 4 1 . Extermination . | . . . . Reinforcement 5 | . 2 3 . Assault . | . . . . Garrison . | . . . . Intercept . | . . . . Searches Triggered . | . . . . Construction Impeded . | . . . . Haulers Reinforced . | . . . . Active Scanning Responses . | . . . . Cargo Convoy Interrupts . | . . . . Stealth | -11 -10 -9 -9 --------- Run | Yrd Mat Mat Min Distress Signals 6 | . . 6 . Communications Jammed . | . . . . Distress Signals . | . . . . Times Spotted 74 | . 8 54 12 Peak Tracking Total 11 | . 5 8 11 Tactical Retreats 9 | . . 9 . Traps | -11 -10 -9 -9 ------- Run | Yrd Mat Mat Min Traps Triggered 4 | . 1 3 . Indirectly . | . . . . Trap Hack Attempts . | . . . . Triggered . | . . . . Disarmed . | . . . . Reprogrammed . | . . . . Reused . | . . . . Traps Extracted . | . . . . Installed . | . . . . Triggered . | . . . . Machines | -11 -10 -9 -9 ---------- Run | Yrd Mat Mat Min Machines Disabled 2 | . . 2 . Max in Single Turn 1 | . . 1 . Machines Repaired . | . . . . Machines Dismantled . | . . . . Machines Sabotaged . | . . . . Overloaded Fab Kills . | . . . . Hacking | -11 -10 -9 -9 --------- Run | Yrd Mat Mat Min Machines Accessed 11 | . 2 9 . Terminals 8 | . 2 6 . Fabricators . | . . . . Repair Stations 1 | . . 1 . Recycling Units 2 | . . 2 . Scanalyzers . | . . . . Garrison Access . | . . . . Total Hacks 15 | . 3 12 . Successful 7 | . 1 6 . Failed 8 | . 2 6 . Catastrophic 4 | . 1 3 . Database Lockouts . | . . . . Manual 7 | . 3 4 . Terminals 12 | . 3 9 . Fabricators . | . . . . Repair Stations 1 | . . 1 . Recycling Units 2 | . . 2 . Scanalyzers . | . . . . Garrison Access . | . . . . Terminal Hacks 3 | . . 3 . Robot Analysis 1 | . . 1 . Unreport Threat 1 | . . 1 . Locate Traps 1 | . . 1 . Fabricator Hacks . | . . . . Repair Station Hacks 1 | . . 1 . Scan Component 1 | . . 1 . Recycling Unit Hacks 2 | . . 2 . Report Inventory 2 | . . 2 . Scanalyzer . | . . . . Garrison Access Hacks . | . . . . Unauthorized Hacks 1 | . 1 . . Terminals 1 | . 1 . . Botnet 1 | . 1 . . Fabricators . | . . . . Repair Stations . | . . . . Recycling Units . | . . . . Scanalyzers . | . . . . Garrison Access . | . . . . Data Cores Recovered . | . . . . Used . | . . . . Hacking Detections 9 | . 2 7 . Full Trace Events 1 | . 1 . . Feedback Events 1 | . 1 . . Corruption 1 | . 1 . . Feedback Blocked . | . . . . Robot Schematics Acquired . | . . . . Robots Built . | . . . . Authchips . | . . . . Time . | . . . . Total Robot Build Rating . | . . . . Part Schematics Acquired . | . . . . Parts Built . | . . . . Authchips . | . . . . Time . | . . . . Total Part Build Rating . | . . . . Parts Repaired . | . . . . Time . | . . . . Parts Recycled . | . . . . Recycled Matter . | . . . . Retrieved Matter . | . . . . Retrieved Components . | . . . . Parts Scanalyzed . | . . . . Part Schematics Acquired . | . . . . Parts Damaged . | . . . . Bothacking | -11 -10 -9 -9 ------------ Run | Yrd Mat Mat Min Used RIF Installer . | . . . . Robots Hacked . | . . . . Non-combat . | . . . . Combat . | . . . . Robot Hacks Applied . | . . . . Relay Couplers Released . | . . . . Fabnet Peak Effective % . | . . . . Robots Rewired . | . . . . Allies Hacked . | . . . . Hacks Repelled . | . . . . Allies | -11 -10 -9 -9 -------- Run | Yrd Mat Mat Min Total Allies . | . . . . Largest Group . | . . . . Highest-Rated Group . | . . . . Highest-Rated Ally . | . . . . Total Orders . | . . . . Ally Attacks . | . . . . Total Damage . | . . . . Kills . | . . . . Allies Corrupted . | . . . . Allies Melted . | . . . . Intel | -11 -10 -9 -9 ------- Run | Yrd Mat Mat Min Robot Analysis Total 1 | . . 1 . Derelict Logs Recovered . | . . . . Drone Launches . | . . . . Drone Recoveries . | . . . . Exploration | -11 -10 -9 -9 ------------- Run | Yrd Mat Mat Min Turns Passed 2319 | 173 402 1695 49 Spaces Moved 1295 | 84 179 1011 21 Core 7 | 3 . 4 . Treads 154 | 79 75 . . Legs 1134 | 2 104 1007 21 Wheels . | . . . . Hover . | . . . . Flight . | . . . . Fastest Speed 50 | 50 120 120 120 Average Speed 125 | 156 136 120 140 Slowest Speed 400 | 160 160 400 260 Overloaded Moves . | . . . . Propulsion Burnouts . | . . . . Robots Hopped . | . . . . Cave-ins Triggered . | . . . . Exploration Rate (%) 33 | 5 38 75 15 Regions Visited 3 Branch Regions 1 Pre-discovered Areas . | . . . . Known Exits Taken . | . . . . Unknown Exits Taken 3 | 1 1 1 . Scrap Searched . | . . . . Spaces Dug . | . . . . Terrain Destroyed . | . . . . Melee . | . . . . Projectile . | . . . . AOE . | . . . . Terrain Rammed . | . . . . Walls Destroyed . | . . . . Machines Disabled . | . . . . Actions | -11 -10 -9 -9 --------- Run | Yrd Mat Mat Min Total 1741 | 108 289 1316 28 Wait 195 | . 60 135 . Move 1292 | 83 178 1010 21 Hop . | . . . . Pick Up 20 | 2 4 14 . Fast Attach 32 | 8 3 20 1 Attach 5 | . 1 4 . Detach . | . . . . Swap 15 | 1 4 10 . Drop 31 | 1 4 26 . Fire 135 | 13 25 91 6 Melee . | . . . . Ram . | . . . . Kick 6 | . . 6 . Crush 10 | . 10 . . Escape Stasis . | . . . . Rewire . | . . . . Trap . | . . . . Miscellaneous . | . . . . Route ------- -11/Scrapyard -10/Materials -9/Materials -9/Mines History --------- Turn | Location | Event 16 | -11/Scrapyard | Discovered new exit (range 16) 174 | -11/Scrapyard | Entered Materials 314 | -10/Materials | Build established: Mutant 350 | -10/Materials | Core integrity fell below 50% 371 | -10/Materials | Core integrity fell below 20% 399 | -10/Materials | Lost 3 parts (1p1n1w) 565 | -10/Materials | Discovered new exit (range 10) 576 | -10/Materials | Entered another Materials area 576 | -9/Materials | Evolved 2 slots: Utility x2 688 | -9/Materials | Build established: Scavenger-Mutant 1729 | -9/Materials | Build established: Mutant 2235 | -9/Materials | Discovered new exit (range 16) 2271 | -9/Materials | Entered Mines 2272 | -9/Mines | Assembled infested the area 2306 | -9/Mines | Core integrity fell below 50% 2317 | -9/Mines | Core integrity fell below 20% 2320 | -9/Mines | Destroyed by D-53 Grenadier with Mini Grenade Launcher Last Messages --------------- dispatching Demolisher response squad. 02277_ Imp. Aluminum Leg destroyed. 02283_ G-47 Trooper overheating. 02284_ G-47 Trooper critical meltdown. 02284_ Lgt. Nuclear Core melted. 02292_ Acquired Aluminum Leg. 02312_ C-30 ARC bursts open, deploying its payload. 02312_ D-53 Grenadier unfolds itself. 02314_ as-17767 destroyed. 02314_ as-60211 destroyed. 02315_ The unstable cave ceiling collapses. 02316_ as-62834 destroyed. 02316_ Imp. Aluminum Leg destroyed. 02318_ Hvy. Particle Gun destroyed. 02318_ as-02100 destroyed. 02318_ as-32288 destroyed. 02318_ Core Extractor disabled. 02318_ as-08831 destroyed. 02319_ Hvy. Particle Gun destroyed. Map ----- +----------------------------------------------------+ | ?????????????# ????????????????????????????? | | ?????????????# ????????????????????????????? | | ?????????????# #???????????????????????????? | | ?????????????# #???????????????????????????? | | ?????????#???# #???####????????????????????? | | ???????### ### #### ##???????????????????? | | ???????# [!% ##??????????????????? | | ???????# %[ ##?????????????????? | | ???????# #### #?????????????????? | | ????# ## ???# #?????????????????? | | ????? #??# ###### ##?????????????????? | | ??????## ### #??????##??????????????????? | | ?????## #??????????????????????????? | | ??#### """ #??????????????????????????? | | ??# "" %a###????????????????????????? | | ?# "" a #???????????????????????? | | ?# ###?????????????????????? | | ??# % #?????????????????????? | | ???# # ####??????????????????? | | ???#### # # ##?????????????????? | | ??????#####?# ??????????????????? | | ?????????????## #???????????????????? | | ?????????????# a #???????????????????? | | ?????????????# #???????????????????? | | ?????????????## d ##??????????????????? | | ?????????????# @ d #??????????????????? | | ?????????????# % ????????????? | | ?????????????## ????????? | | ??????????????## #### ?????????? | | ???????????????#### ##????? ? ?????????? | | ??????????????????# #??????????????????? | | ??????????????????# ##??????????????????? | | ??????????????????# #???????????????????? | | ??????????????????## ##???????????????????? | | ????????????????????# #????????????????????? | | ????????????????????? #????????????????????? | | ????????????????????? ????????????????????? | | ?????????????????????##????????????????????? | | ???????????????????????????????????????????? | | ???????????????????????????????????????????? | | ???????????????????????????????????????????? | | ???????????????????????????????????????????? | | ???????????????????????????????????????????? | | ???????????????????????????????????????????? | | ???????????????????????????????????????????? | | ???????????????????????????????????????????? | | ???????????????????????????????????????????? | | ???????????????????????????????????????????? | | ???????????????????????????????????????????? | | ???????????????????????????????????????????? | +----------------------------------------------------+ Best States ------------- Heat Dissipation 42 Energy Generation 14 Energy Capacity 280 Matter Stores 300 Matter Capacity 300 Sight Range 16 Terrain Scan Range 16 Terrain Scan Density 10 ECM Strength 1 Armor Coverage 150 Evasion (%) 55 Targeting Accuracy 16 Recoil Reduction 2 Item Schematics ----------------- None Robot Schematics ------------------ None Fabricated ------------ Nothing Alien Tech Used ----------------- None Achievements -------------- Novice Programmer Challenges ------------ None Game ------ Seed LightThiefRedistributor Manual? 0 Play Time 00:37:31 Cumulative 35.5 hours Start 2024.08.31 @ 08:14:17 End 2024.08.31 @ 08:54:11 Sessions 1 Manual Loads 0 Difficulty Rogue Special Mode None Game No. 46 Rogue 46 Adventurer 0 Explorer 0 Win Type - Total 0 Types 0/0/0/0/0/0/0/0/0 Lore% 8 Gallery% 32 Achievement% 27 Wizard Run 0 Options --------- Layout 1 ASCII 0 Keyboard 0 Movement Mouse Keybinds 0 Fullscreen 1 Font 24/Crisp Map View 50x35 Zoom Use 0% Tactical HUD 1 Map Filters NONE Filters NONE Steam 1 RUN: dd124734-87b4-4491-9e1e-4bb0f5a307ba